fUSD/lending_fUSD_20250202
["ID","MTS","AMOUNT","RATE_DAILY","PERIOD"]
[351297556,1738509035033,-2117.27,0.00011228,2]
[351297557,1738509035043,-2621.55,0.00011228,2]
[351297558,1738509035052,-500.0,0.00011228,2]
[351297559,1738509035062,-500.0,0.00011228,2]
[351297560,1738509035072,-940.3,0.00011228,2]
[351297561,1738509035082,-407.41260305,0.00011228,2]
[351297562,1738509035091,-500.0,0.00011228,2]
[351297563,1738509035100,-500.0,0.00011228,2]
[351297564,1738509035109,-3774.98,0.00011228,2]
[351297565,1738509035119,-500.0,0.00011228,2]
[351297566,1738509035127,-500.0,0.00011228,2]
[351297567,1738509035138,-500.0,0.00011228,2]
[351297568,1738509035148,-500.0,0.00011228,2]
[351297569,1738509035159,-500.0,0.00011228,2]
[351297570,1738509035170,-500.0,0.00011228,2]
[351297571,1738509035179,-942.06,0.00011228,2]
[351297572,1738509035188,-500.0,0.00011228,2]
[351297573,1738509035198,-1347.65,0.00011228,2]
[351297574,1738509035207,-500.0,0.00011228,2]
[351297575,1738509035217,-500.0,0.00011228,2]
[351297576,1738509035226,-500.0,0.00011228,2]
[351297577,1738509035237,-4045.04,0.00011228,2]
[351297578,1738509035247,-500.0,0.00011228,2]
[351297579,1738509035256,-500.0,0.00011228,2]
[351297580,1738509035265,-500.0,0.00011228,2]
[351297581,1738509035275,-934.14,0.00011228,2]
[351297582,1738509035284,-500.0,0.00011228,2]
[351297583,1738509035294,-1676.71,0.00011228,2]
[351297584,1738509035304,-549.07,0.00011228,2]
[351297585,1738509035313,-500.0,0.00011228,2]
[351297586,1738509035323,-500.0,0.00011228,2]
[351297587,1738509035332,-500.0,0.00011228,2]
[351297588,1738509035342,-500.0,0.00011228,2]
[351297589,1738509035351,-500.0,0.00011228,2]
[351297590,1738509035360,-1103.81,0.00011228,2]
[351297591,1738509035370,-547.47,0.00011228,2]
[351297592,1738509035379,-842.24,0.00011228,2]
[351297593,1738509035388,-509.25071384,0.00011228,2]
[351297594,1738509035398,-500.0,0.00011228,2]
[351297595,1738509035407,-656.43,0.00011228,2]
[351297596,1738509035417,-500.0,0.00011228,2]
[351297597,1738509035426,-500.0,0.00011228,2]
[351297598,1738509035435,-500.0,0.00011228,2]
[351297599,1738509035445,-868.47,0.00011228,2]
[351297600,1738509035454,-5448.36,0.00011228,2]
[351297601,1738509035464,-2373.96,0.00011228,2]
[351297602,1738509035655,-500.0,0.00011228,2]
[351297603,1738509035665,-1633.72,0.00011228,2]
[351297604,1738509035675,-873.11,0.00011228,2]
[351297605,1738509035684,-500.0,0.00011228,2]
[351297606,1738509035694,-500.0,0.00011228,2]
[351297607,1738509035703,-500.0,0.00011228,2]
[351297608,1738509035712,-958.41,0.00011228,2]
[351297609,1738509035722,-500.0,0.00011228,2]
[351297610,1738509035731,-925.74,0.00011228,2]
[351297611,1738509035741,-500.0,0.00011228,2]
[351297612,1738509035754,-500.0,0.00011228,2]
[351297613,1738509035763,-500.0,0.00011228,2]
[351297614,1738509035773,-500.0,0.00011228,2]
[351297615,1738509035783,-632.91,0.00011228,2]
[351297616,1738509035792,-500.0,0.00011229,2]
[351297617,1738509035802,-500.0,0.00011229,2]
[351297618,1738509035811,-500.0,0.00011229,2]
[351297619,1738509035821,-500.0,0.00011229,2]
[351297620,1738509035831,-500.0,0.00011229,2]
[351297621,1738509035840,-741.63,0.00011229,2]
[351297622,1738509035850,-529.27,0.00011229,2]
[351297623,1738509035859,-500.0,0.00011229,2]
[351297624,1738509035868,-500.0,0.00011229,2]
[351297625,1738509035878,-500.0,0.00011229,2]
[351297626,1738509035887,-1696.89,0.00011229,2]
[351297627,1738509035897,-500.0,0.00011229,2]
[351297628,1738509035906,-532.59696567,0.00011229,2]
[351297629,1738509035916,-500.0,0.00011229,2]
[351297630,1738509035926,-500.0,0.00011229,2]
[351297631,1738509035935,-500.0,0.00011229,2]
[351297632,1738509035945,-500.0,0.00011229,2]
[351297633,1738509035955,-500.0,0.00011229,2]
[351297634,1738509035965,-500.0,0.00011229,2]
[351297635,1738509035974,-500.0,0.00011229,2]
[351297636,1738509035984,-500.0,0.00011229,2]
[351297637,1738509035993,-500.0,0.00011229,2]
[351297638,1738509036003,-500.0,0.00011229,2]
[351297639,1738509036012,-500.0,0.00011229,2]
[351297640,1738509036022,-1219.97,0.00011229,2]
[351297641,1738509036031,-500.0,0.00011229,2]
[351297642,1738509036041,-500.0,0.00011229,2]
[351297643,1738509036051,-500.0,0.00011229,2]
[351297644,1738509036061,-500.0,0.00011229,2]
[351297645,1738509036070,-500.0,0.00011229,2]
[351297646,1738509036080,-500.0,0.00011229,2]
[351297647,1738509036089,-500.0,0.00011229,2]
[351297648,1738509036098,-500.0,0.00011229,2]
[351297649,1738509036107,-500.0,0.00011229,2]
[351297650,1738509036117,-500.0,0.00011229,2]
[351297651,1738509036127,-500.0,0.00011229,2]
[351297652,1738509036136,-500.0,0.00011229,2]
[351297653,1738509036146,-500.0,0.00011229,2]
[351297654,1738509036155,-622.55,0.00011229,2]
[351297655,1738509036164,-623.56,0.00011229,2]
[351297656,1738509036174,-500.0,0.00011229,2]
[351297657,1738509036183,-500.0,0.00011229,2]
[351297658,1738509036193,-500.0,0.00011229,2]
[351297659,1738509036203,-500.0,0.00011229,2]
[351297660,1738509036213,-500.0,0.00011229,2]
[351297661,1738509036223,-500.0,0.00011229,2]
[351297662,1738509036236,-650.4,0.00011229,2]
[351297663,1738509036247,-937.48,0.00011229,2]
[351297664,1738509036257,-500.0,0.00011229,2]
[351297665,1738509036266,-500.0,0.00011229,2]
[351297666,1738509036276,-500.0,0.00011229,2]
[351297667,1738509036285,-500.0,0.00011229,2]
[351297668,1738509036296,-500.0,0.00011229,2]
[351297669,1738509036305,-500.0,0.00011229,2]
[351297670,1738509036315,-500.0,0.00011229,2]
[351297671,1738509036325,-500.0,0.00011229,2]
[351297672,1738509036334,-538.63,0.00011229,2]
[351297673,1738509036345,-500.0,0.00011229,2]
[351297674,1738509036354,-888.68,0.00011229,2]
[351297675,1738509036364,-672.78,0.00011229,2]
[351297676,1738509036373,-500.0,0.00011229,2]
[351297677,1738509036383,-670.63,0.00011229,2]
[351297678,1738509036393,-640.52,0.00011229,2]
[351297679,1738509036403,-595.27,0.00011229,2]
[351297680,1738509036412,-500.0,0.00011229,2]
[351297681,1738509036422,-500.0,0.00011229,2]
[351297682,1738509036431,-553.21,0.00011229,2]
[351297683,1738509036441,-500.0,0.00011229,2]
[351297684,1738509036451,-500.0,0.00011229,2]
[351297685,1738509036461,-500.0,0.00011229,2]
[351297686,1738509036471,-506.53,0.00011229,2]
[351297687,1738509036481,-500.0,0.00011229,2]
[351297688,1738509036490,-500.0,0.00011229,2]
[351297689,1738509036500,-533.16,0.00011229,2]
[351297690,1738509036510,-500.0,0.00011229,2]
[351297691,1738509036520,-624.26,0.00011229,2]
[351297692,1738509036529,-500.0,0.00011229,2]
[351297693,1738509036539,-500.0,0.00011229,2]
[351297694,1738509036549,-500.0,0.00011231,2]
[351297695,1738509036559,-500.0,0.00011231,2]
[351297696,1738509036569,-500.0,0.00011231,2]
[351297697,1738509036578,-500.0,0.00011231,2]
[351297698,1738509036587,-500.0,0.00011231,2]
[351297699,1738509036596,-500.0,0.00011231,2]
[351297700,1738509036606,-500.0,0.00011231,2]
[351297701,1738509036617,-500.0,0.00011231,2]
[351297702,1738509036626,-500.0,0.00011231,2]
[351297703,1738509036636,-500.0,0.00011231,2]
[351297704,1738509036646,-500.0,0.00011231,2]
[351297705,1738509036656,-500.0,0.00011231,2]
[351297706,1738509036666,-500.0,0.00011231,2]
[351297707,1738509036675,-500.0,0.00011231,2]
[351297708,1738509036685,-500.0,0.00011231,2]
[351297709,1738509036695,-500.0,0.00011231,2]
[351297710,1738509036704,-500.0,0.00011231,2]
[351297711,1738509036714,-500.0,0.00011231,2]
[351297712,1738509036724,-500.0,0.00011231,2]
[351297713,1738509036733,-500.0,0.00011231,2]
[351297714,1738509036747,-500.0,0.00011231,2]
[351297715,1738509036756,-500.0,0.00011231,2]
[351297716,1738509036766,-500.0,0.00011231,2]
[351297717,1738509036776,-500.0,0.00011231,2]
[351297718,1738509036787,-500.0,0.00011231,2]
[351297719,1738509036798,-529.69,0.00011231,2]
[351297720,1738509036807,-500.0,0.00011231,2]
[351297721,1738509036819,-446.99543686,0.00011231,2]
[351297722,1738509036829,-500.0,0.00011231,2]
[351297723,1738509036840,-500.0,0.00011231,2]
[351297724,1738509036851,-500.0,0.00011231,2]
[351297725,1738509036861,-500.0,0.00011231,2]
[351297726,1738509036871,-500.0,0.00011231,2]
[351297727,1738509036880,-500.0,0.00011231,2]
[351297728,1738509036890,-500.0,0.00011231,2]
[351297729,1738509036899,-500.0,0.00011231,2]
[351297730,1738509036910,-500.0,0.00011231,2]
[351297731,1738509036920,-500.0,0.00011231,2]
[351297732,1738509036930,-500.0,0.00011231,2]
[351297733,1738509036940,-544.42986136,0.00011231,2]
[351297734,1738509036949,-500.0,0.00011231,2]
[351297735,1738509036959,-500.0,0.00011231,2]
[351297736,1738509036969,-500.0,0.00011231,2]
[351297737,1738509036978,-500.0,0.00011231,2]
[351297738,1738509036988,-500.0,0.00011231,2]
[351297739,1738509036998,-500.0,0.00011231,2]
[351297740,1738509037008,-500.0,0.00011231,2]
[351297741,1738509037018,-500.0,0.00011231,2]
[351297742,1738509037027,-635.12,0.00011231,2]
[351297743,1738509037037,-366.2734086,0.00011231,2]
[351297744,1738509037047,-500.0,0.00011231,2]
[351297745,1738509037057,-500.0,0.00011231,2]
[351297746,1738509037067,-500.0,0.00011231,2]
[351297747,1738509037076,-500.0,0.00011231,2]
[351297748,1738509037086,-500.0,0.00011231,2]
[351297749,1738509037095,-500.0,0.00011231,2]
[351297750,1738509037105,-500.0,0.00011231,2]
[351297751,1738509037115,-500.44,0.00011231,2]
[351297752,1738509037125,-500.0,0.00011231,2]
[351297753,1738509037135,-500.0,0.00011231,2]
[351297754,1738509037144,-500.0,0.00011231,2]
[351297755,1738509037154,-500.0,0.00011231,2]
[351297756,1738509037164,-500.0,0.00011231,2]
[351297757,1738509037173,-500.0,0.00011231,2]
[351297758,1738509037183,-500.0,0.00011231,2]
[351297759,1738509037193,-500.0,0.00011231,2]
[351297760,1738509037202,-500.0,0.00011231,2]
[351297761,1738509037212,-500.0,0.00011231,2]
[351297762,1738509037222,-500.0,0.00011231,2]
[351297763,1738509037232,-500.0,0.00011231,2]
[351297764,1738509037241,-500.0,0.00011231,2]
[351297765,1738509037251,-500.0,0.00011231,2]
[351297766,1738509037260,-500.0,0.00011231,2]
[351297767,1738509037270,-500.0,0.00011231,2]
[351297768,1738509037280,-500.0,0.00011231,2]
[351297769,1738509037290,-514.42,0.00011231,2]
[351297770,1738509037300,-621.28844008,0.00011231,2]
[351297771,1738509037310,-500.0,0.00011231,2]
[351297772,1738509037320,-500.0,0.00011231,2]
[351297773,1738509037329,-500.0,0.00011231,2]
[351297774,1738509037339,-500.0,0.00011231,2]
[351297775,1738509037349,-500.0,0.00011231,2]
[351297776,1738509037359,-500.0,0.00011231,2]
[351297777,1738509037369,-500.0,0.00011231,2]
[351297778,1738509037380,-500.0,0.00011231,2]
[351297779,1738509037390,-500.0,0.00011231,2]
[351297780,1738509037400,-500.0,0.00011231,2]
[351297781,1738509037411,-1035.21094261,0.00011266,2]
[351297782,1738509037421,-155.87199181,0.00011267,2]
[351297783,1738509037430,-1035.21094261,0.00011267,2]
[351297784,1738509037440,-165.04278341,0.00011268,2]
[351297785,1738509037450,-1035.21094261,0.00011268,2]
[351297786,1738509037459,-36278.30530213,0.000113,2]
[351297787,1738509037469,-9133.393812,0.00011302,2]
[351297788,1738509037479,-961.41,0.0001133,2]
[351297789,1738509037488,-500.0,0.0001133,2]
[351297790,1738509037498,-1858.7,0.0001133,2]
[351297791,1738509037508,-766.71,0.0001133,2]
[351297792,1738509037518,-1170.33,0.0001133,2]
[351297793,1738509037528,-1522.11,0.0001133,2]
[351297794,1738509037538,-500.0,0.0001133,2]
[351297795,1738509037547,-1678.43,0.0001133,2]
[351297796,1738509037557,-2952.23,0.0001133,2]
[351297797,1738509037567,-175.0,0.0001133,2]
[351297798,1738509037577,-9429.45,0.0001133,2]
[351297799,1738509037587,-848.57,0.0001133,2]
[351297800,1738509037596,-500.0,0.0001133,2]
[351297801,1738509037606,-825.28,0.0001133,2]
[351297802,1738509037618,-1532.77,0.0001133,2]
[351297803,1738509037627,-500.0,0.0001133,2]
[351297804,1738509037637,-1063.75,0.0001133,2]
[351297805,1738509037647,-1037.73,0.00011331,2]
[351297806,1738509037656,-1075.76,0.00011331,2]
[351297807,1738509037666,-809.15,0.00011331,2]
[351297808,1738509037676,-1000.0,0.00011331,2]
[351297809,1738509037686,-1620.5,0.00011331,2]
[351297810,1738509037695,-500.0,0.00011331,2]
[351297811,1738509037705,-1429.49,0.00011331,2]
[351297812,1738509037716,-1701.95,0.00011331,2]
[351297813,1738509037725,-1000.0,0.00011336,2]
[351297814,1738509037735,-455.84528439,0.00011358,2]
[351297815,1738509037747,-500.0,0.00011364,2]
[351297816,1738509037759,-507.0,0.00011364,2]
[351297817,1738509037770,-1144.71,0.00011364,2]
[351297818,1738509037780,-1893.88,0.00011364,2]
[351297819,1738509037790,-500.0,0.00011364,2]
[351297820,1738509037800,-643.88,0.00011364,2]
[351297821,1738509037811,-995.66,0.00011364,2]
[351297822,1738509037821,-2087.59,0.00011364,2]
[351297823,1738509037834,-3959.48,0.00011364,2]
[351297824,1738509037844,-846.12,0.00011364,2]
[351297825,1738509037855,-548.91,0.00011364,2]
[351297826,1738509037865,-1484.11,0.00011364,2]
[351297827,1738509037875,-500.0,0.00011364,2]
[351297828,1738509037885,-500.0,0.00011364,2]
[351297829,1738509037895,-1137.73,0.00011364,2]
[351297830,1738509037904,-788.57,0.00011364,2]
[351297831,1738509037913,-1015.84,0.00011364,2]
[351297832,1738509037923,-854.1349697,0.00011365,2]
[351297833,1738509037933,-500.0,0.00011365,2]
[351297834,1738509037943,-500.0,0.00011365,2]
[351297835,1738509037954,-500.0,0.00011365,2]
[351297836,1738509037964,-500.0,0.00011365,2]
[351297837,1738509037975,-500.0,0.00011365,2]
[351297838,1738509037986,-576.18721687,0.00011365,2]
[351297839,1738509037996,-500.0,0.00011365,2]
[351297840,1738509038006,-499.31730238,0.00011365,2]
[351297841,1738509038016,-500.0,0.00011365,2]
[351297842,1738509038027,-603.95,0.00011365,2]
[351297846,1738509038087,-500.0,0.00011365,2]
[351297848,1738509038097,-500.0,0.00011365,2]
[351297850,1738509038107,-500.0,0.00011365,2]
[351297852,1738509038117,-419.01127141,0.00011365,2]
[351297855,1738509038126,-525.98,0.00011365,2]
[351297856,1738509038136,-500.0,0.00011365,2]
[351297858,1738509038145,-500.0,0.00011365,2]
[351297860,1738509038155,-500.0,0.00011365,2]
[351297862,1738509038164,-500.0,0.00011365,2]
[351297864,1738509038173,-500.0,0.00011365,2]
[351297866,1738509038182,-500.0,0.00011365,2]
[351297868,1738509038192,-500.0,0.00011365,2]
[351297870,1738509038201,-500.0,0.00011365,2]
[351297872,1738509038211,-500.0,0.00011365,2]
[351297874,1738509038221,-500.0,0.00011365,2]
[351297876,1738509038230,-500.0,0.00011365,2]
[351297878,1738509038243,-649.24,0.00011365,2]
[351297880,1738509038252,-500.0,0.00011365,2]
[351297882,1738509038261,-500.0,0.00011365,2]
[351297884,1738509038270,-500.0,0.00011365,2]
[351297886,1738509038279,-500.0,0.00011365,2]
[351297888,1738509038289,-203.94480969,0.00011365,2]
[351297890,1738509038298,-500.0,0.00011365,2]
[351297892,1738509038307,-648.03,0.00011365,2]
[351297894,1738509038316,-500.0,0.00011365,2]
[351297896,1738509038326,-500.0,0.00011365,2]
[351297898,1738509038335,-500.0,0.00011365,2]
[351297900,1738509038345,-604.32,0.00011365,2]
[351297902,1738509038354,-500.0,0.00011365,2]
[351297904,1738509038364,-509.29856127,0.00011365,2]
[351297906,1738509038373,-500.0,0.00011365,2]
[351297908,1738509038382,-500.0,0.00011365,2]
[351297910,1738509038392,-500.0,0.00011365,2]
[351297912,1738509038401,-500.0,0.00011365,2]
[351297914,1738509038410,-500.0,0.00011365,2]
[351297916,1738509038420,-500.0,0.00011365,2]
[351297918,1738509038429,-500.0,0.00011365,2]
[351297920,1738509038438,-500.0,0.00011365,2]
[351297922,1738509038448,-633.12,0.00011365,2]
[351297924,1738509038457,-500.0,0.00011365,2]
[351297926,1738509038466,-500.0,0.00011365,2]
[351297928,1738509038476,-500.0,0.00011365,2]
[351297930,1738509038485,-500.0,0.00011365,2]
[351297932,1738509038496,-500.0,0.00011365,2]
[351297934,1738509038505,-500.0,0.00011365,2]
[351297936,1738509038515,-500.0,0.00011365,2]
[351297938,1738509038525,-562.22088237,0.00011365,2]
[351297940,1738509038535,-500.0,0.00011365,2]
[351297942,1738509038545,-500.0,0.00011365,2]
[351297944,1738509038554,-500.0,0.00011365,2]
[351297946,1738509038564,-500.0,0.00011365,2]
[351297948,1738509038574,-500.0,0.00011365,2]
[351297950,1738509038583,-587.49,0.00011365,2]
[351297952,1738509038592,-500.0,0.00011365,2]
[351297954,1738509038602,-500.0,0.00011365,2]
[351297956,1738509038611,-266.880554,0.00011365,2]
[351297958,1738509038620,-500.0,0.00011365,2]
[351297960,1738509038629,-500.0,0.00011365,2]
[351297962,1738509038638,-500.0,0.00011365,2]
[351297964,1738509038648,-500.0,0.00011365,2]
[351297966,1738509038657,-500.0,0.00011365,2]
[351297968,1738509038666,-500.0,0.00011365,2]
[351297970,1738509038675,-500.0,0.00011365,2]
[351297972,1738509038685,-500.0,0.00011365,2]
[351297974,1738509038694,-500.0,0.00011365,2]
[351297976,1738509038703,-500.0,0.00011365,2]
[351297978,1738509038712,-644.58585112,0.00011365,2]
[351297980,1738509038721,-631.98,0.00011365,2]
[351297982,1738509038730,-500.0,0.00011365,2]
[351297983,1738509038739,-500.0,0.00011365,2]
[351297986,1738509038750,-500.0,0.00011365,2]
[351297987,1738509038759,-500.0,0.00011365,2]
[351297990,1738509038770,-500.0,0.00011365,2]
[351297992,1738509038779,-197.57927,0.00011365,2]
[351297994,1738509038791,-500.0,0.00011365,2]
[351297996,1738509038802,-500.0,0.00011365,2]
[351297998,1738509038812,-500.0,0.00011365,2]
[351298000,1738509038824,-500.0,0.00011365,2]
[351298002,1738509038833,-500.0,0.00011365,2]
[351298004,1738509038843,-500.0,0.00011365,2]
[351298006,1738509038852,-603.39,0.00011365,2]
[351298008,1738509038861,-488.91452135,0.00011365,2]
[351298010,1738509038871,-500.0,0.00011365,2]
[351298012,1738509038880,-500.0,0.00011365,2]
[351298014,1738509038889,-572.64,0.00011365,2]
[351298016,1738509038900,-620.04,0.00011365,2]
[351298018,1738509038909,-793.77,0.00011365,2]
[351298020,1738509038918,-500.0,0.00011365,2]
[351298022,1738509038926,-500.0,0.00011365,2]
[351298024,1738509038935,-500.0,0.00011365,2]
[351298026,1738509038944,-500.0,0.00011365,2]
[351298028,1738509038953,-500.0,0.00011365,2]
[351298030,1738509038961,-500.0,0.00011365,2]
[351298032,1738509038970,-1514.01,0.00011365,2]
[351298034,1738509038980,-500.0,0.00011365,2]
[351298036,1738509038989,-500.0,0.00011365,2]
[351298038,1738509038998,-500.0,0.00011365,2]
[351298040,1738509039007,-619.92,0.00011365,2]
[351298042,1738509039016,-500.0,0.00011365,2]
[351298044,1738509039025,-500.0,0.00011365,2]
[351298046,1738509039034,-593.29,0.00011365,2]
[351298048,1738509039044,-500.0,0.00011365,2]
[351298050,1738509039053,-500.0,0.00011365,2]
[351298052,1738509039062,-500.0,0.00011365,2]
[351298054,1738509039071,-500.0,0.00011365,2]
[351298056,1738509039079,-500.0,0.00011365,2]
[351298057,1738509039089,-500.0,0.00011365,2]
[351298059,1738509039098,-722.25,0.00011365,2]
[351298062,1738509039107,-500.0,0.00011365,2]
[351298063,1738509039116,-500.0,0.00011365,2]
[351298065,1738509039125,-500.0,0.00011365,2]
[351298067,1738509039135,-768.02,0.00011365,2]
[351298069,1738509039144,-500.0,0.00011365,2]
[351298071,1738509039153,-500.0,0.00011365,2]
[351298073,1738509039163,-796.48,0.00011365,2]
[351298075,1738509039172,-500.0,0.00011365,2]
[351298077,1738509039182,-500.0,0.00011365,2]
[351298079,1738509039192,-500.0,0.00011365,2]
[351298081,1738509039201,-500.0,0.00011365,2]
[351298083,1738509039210,-518.54,0.00011365,2]
[351298085,1738509039219,-2490.0,0.00011365,2]
[351298087,1738509039229,-500.0,0.00011365,2]
[351298089,1738509039238,-500.0,0.00011365,2]
[351298091,1738509039248,-687.42,0.00011365,2]
[351298093,1738509039257,-755.99,0.00011365,2]
[351298095,1738509039266,-500.0,0.00011365,2]
[351298097,1738509039275,-631.91,0.00011365,2]
[351298099,1738509039285,-500.0,0.00011365,2]
[351298101,1738509039294,-500.0,0.00011365,2]
[351298103,1738509039305,-443.13474416,0.00011365,2]
[351298105,1738509039315,-500.0,0.00011365,2]
[351298107,1738509039324,-792.41,0.00011365,2]
[351298109,1738509039333,-500.0,0.00011365,2]
[351298111,1738509039343,-500.0,0.00011365,2]
[351298113,1738509039352,-500.0,0.00011365,2]
[351298115,1738509039362,-1169.86,0.00011365,2]
[351298117,1738509039372,-500.0,0.00011365,2]
[351298119,1738509039381,-500.0,0.00011365,2]
[351298121,1738509039391,-713.69,0.00011365,2]
[351298123,1738509039400,-617.28,0.00011365,2]
[351298125,1738509039409,-500.0,0.00011365,2]
[351298127,1738509039419,-500.0,0.00011365,2]
[351298129,1738509039428,-500.0,0.00011365,2]
[351298131,1738509039437,-1075.41,0.00011365,2]
[351298133,1738509039447,-505.6,0.00011365,2]
[351298135,1738509039456,-500.0,0.00011365,2]
[351298137,1738509039466,-500.0,0.00011365,2]
[351298139,1738509039474,-500.0,0.00011365,2]
[351298141,1738509039483,-1702.89,0.00011365,2]
[351298143,1738509039492,-500.0,0.00011365,2]
[351298145,1738509039501,-500.0,0.00011365,2]
[351298146,1738509039511,-741.62,0.00011365,2]
[351298148,1738509039520,-500.0,0.00011365,2]
[351298150,1738509039529,-879.04,0.00011365,2]
[351298152,1738509039539,-1102.18,0.00011365,2]
[351298154,1738509039549,-500.0,0.00011365,2]
[351298156,1738509039558,-824.59,0.00011365,2]
[351298158,1738509039567,-1362.96,0.00011365,2]
[351298160,1738509039577,-387.58597967,0.00011365,2]
[351298162,1738509039586,-500.0,0.00011365,2]
[351298164,1738509039595,-500.0,0.00011365,2]
[351298166,1738509039604,-500.0,0.00011365,2]
[351298168,1738509039613,-500.0,0.00011365,2]
[351298170,1738509039622,-161.58,0.00011365,2]
[351298172,1738509039631,-984.81,0.00011365,2]
[351298174,1738509039640,-1459.42,0.00011365,2]
[351298176,1738509039650,-3568.69,0.00011365,2]
[351298178,1738509039660,-3396.6,0.00011365,2]
[351298180,1738509039669,-500.0,0.00011365,2]
[351298181,1738509039678,-1017.83,0.00011365,2]
[351298183,1738509039688,-2119.42,0.00011365,2]
[351298186,1738509039697,-721.46,0.00011365,2]
[351298188,1738509039707,-500.0,0.00011365,2]
[351298191,1738509039716,-1173.33,0.00011365,2]
[351298193,1738509039726,-841.66,0.00011365,2]
[351298194,1738509039735,-2223.55,0.00011365,2]
[351298196,1738509039749,-500.0,0.00011365,2]
[351298198,1738509039758,-2149.13,0.00011365,2]
[351298200,1738509039767,-659.43,0.00011365,2]
[351298202,1738509039778,-939.31,0.00011365,2]
[351298203,1738509039787,-500.0,0.00011365,2]
[351298204,1738509039796,-553.19108828,0.00011365,2]
[351298205,1738509039804,-500.0,0.00011365,2]
[351298206,1738509039813,-1948.92,0.00011365,2]
[351298207,1738509039821,-2088.25,0.00011365,2]
[351298208,1738509039833,-500.0,0.00011365,2]
[351298209,1738509039841,-2240.5,0.00011365,2]
[351298211,1738509039851,-500.0,0.00011365,2]
[351298213,1738509039861,-500.0,0.00011365,2]
[351298215,1738509039870,-1005.09,0.00011365,2]
[351298217,1738509039879,-500.0,0.00011365,2]
[351298219,1738509039889,-500.0,0.00011365,2]
[351298221,1738509039898,-500.0,0.00011365,2]
[351298223,1738509039907,-500.0,0.00011365,2]
[351298225,1738509039918,-500.0,0.00011365,2]
[351298227,1738509039927,-999.63,0.00011365,2]
[351298229,1738509039936,-500.0,0.00011365,2]
[351298231,1738509039945,-500.0,0.00011365,2]
[351298233,1738509039954,-1978.46,0.00011365,2]
[351298235,1738509039963,-500.0,0.00011365,2]
[351298237,1738509039972,-4322.96,0.00011365,2]
[351298239,1738509039982,-924.06,0.00011365,2]
[351298241,1738509039991,-1885.88,0.00011365,2]
[351298243,1738509040001,-500.0,0.00011365,2]
[351298245,1738509040010,-540.14,0.00011365,2]
[351298247,1738509040019,-2839.36,0.00011365,2]
[351298249,1738509040028,-500.0,0.00011365,2]
[351298251,1738509040037,-500.0,0.00011365,2]
[351298253,1738509040049,-2577.93,0.00011365,2]
[351298255,1738509040059,-2117.27,0.00011365,2]
[351298257,1738509040068,-2621.55,0.00011365,2]
[351298259,1738509040077,-500.0,0.00011365,2]
[351298260,1738509040087,-500.0,0.00011365,2]